bitfinex/quotes_ETHUSD_20220310
["timestamp","ask_amount","ask_price","bid_price","bid_amount"]
[1646951809650,0.02492031,2610.0,2609.9,19.80279203]
[1646951818451,0.0238183,2610.0,2609.9,19.80279203]
[1646951818650,0.0238183,2610.0,2609.9,20.43213158]
[1646951823599,0.0238183,2610.0,2609.9,18.43213158]
[1646951823800,0.0238183,2610.0,2609.9,18.03404305]
[1646951828996,0.0238183,2610.0,2609.9,17.4047035]
[1646951829196,0.0238183,2610.0,2609.9,18.03404305]
[1646951829396,0.0238183,2610.0,2609.9,18.43213158]
[1646951829596,0.0238183,2610.0,2609.9,18.03404305]
[1646951830197,0.03263112,2610.0,2609.9,18.03404305]
[1646951832964,0.03263112,2610.0,2609.9,18.43213158]
[1646951838104,0.03263112,2610.0,2609.9,17.80279203]
[1646951838306,0.03263112,2610.0,2609.9,18.03404305]
[1646951838604,0.03263112,2610.0,2609.9,18.43213158]
[1646951839048,0.03263112,2610.0,2609.9,18.03404305]
[1646951840353,0.03143032,2610.0,2609.9,18.03404305]
[1646951841756,0.03143032,2610.0,2609.9,17.4047035]
[1646951849654,0.03143032,2610.0,2609.9,16.4047035]
[1646951849954,1.61065788,2610.0,2609.9,16.4047035]
[1646951850206,1.61065788,2610.0,2609.9,17.4047035]
[1646951853313,1.61065788,2610.0,2609.9,16.4464135]
[1646951859803,1.61065788,2610.0,2609.9,15.1]
[1646951860204,1.61065788,2610.0,2609.9,16.4464135]
[1646951862949,1.60932097,2610.0,2609.9,16.4464135]
[1646951864849,1.60932097,2610.0,2609.9,15.4464135]
[1646951865051,1.60932097,2610.0,2609.9,15.1464135]
[1646951866404,1.60932097,2610.0,2609.9,15.4464135]
[1646951866610,1.65921866,2610.0,2609.9,15.1464135]
[1646951867407,1.60932097,2610.0,2609.9,15.1464135]
[1646951867605,5.10932097,2610.0,2609.9,15.1464135]
[1646951868005,1.60932097,2610.0,2609.9,15.1464135]
[1646951872702,5.10932097,2610.0,2609.9,15.1464135]
[1646951872904,8.10932097,2610.0,2609.9,13.4616808]
[1646951873803,8.8151743,2610.0,2609.9,13.4616808]
[1646951874407,5.8151743,2610.0,2609.9,13.4616808]
[1646951874604,8.8151743,2610.0,2609.9,13.4616808]
[1646951875204,9.8151743,2610.0,2609.9,13.4616808]
[1646951877453,10.40035792,2610.0,2609.9,13.4616808]
[1646951878457,10.65317459,2610.0,2609.9,13.4616808]
[1646951878955,11.35902792,2610.0,2609.9,13.4616808]
[1646951879155,10.65317459,2610.0,2609.9,13.4616808]
[1646951880059,22.37317459,2610.0,2609.9,13.4616808]
[1646951880311,25.40040078,2610.0,2609.9,13.4616808]
[1646951880911,24.45925929,2610.0,2609.9,13.4616808]
[1646951882913,24.75925929,2610.0,2609.9,13.4616808]
[1646951883966,24.81968375,2610.0,2609.9,13.4616808]
[1646951884356,24.81968375,2610.0,2609.9,13.4116808]
[1646951885159,24.23450013,2610.0,2609.9,13.4116808]
[1646951886064,25.18410013,2610.0,2609.9,13.4116808]
[1646951888002,25.75945597,2610.0,2609.9,13.4116808]
[1646951889205,22.25945597,2610.0,2609.9,13.4116808]
[1646951890005,20.17337127,2610.0,2609.9,13.4116808]
[1646951890205,22.25945597,2610.0,2609.9,13.4116808]
[1646951890406,23.19972456,2610.0,2609.9,13.4116808]
[1646951892855,23.19972456,2610.0,2609.9,11.72629732]
[1646951893057,23.19972456,2610.0,2609.9,11.51852452]
[1646951893357,22.25945597,2610.0,2609.9,11.51852452]
[1646951893558,22.25945597,2610.0,2609.9,11.51733192]
[1646951893959,23.19972456,2610.0,2609.9,11.51733192]
[1646951895313,22.25945597,2610.0,2609.9,11.51733192]
[1646951895713,25.58552052,2610.0,2609.9,11.51733192]
[1646951895916,29.66982006,2610.0,2609.9,8.98924844]
[1646951896313,29.66826535,2610.0,2609.9,8.98924844]
[1646951896714,28.72955147,2610.0,2609.9,8.98924844]
[1646951897119,28.72955147,2610.0,2609.9,8.44096295]
[1646951898617,28.72955147,2610.0,2609.9,8.3328726]
[1646951899457,28.72955147,2610.0,2609.9,7.73461472]
[1646951899757,28.72955147,2610.0,2609.9,7.15361472]
[1646951899957,29.66779363,2610.0,2609.9,7.15361472]
[1646951900158,28.72955147,2610.0,2609.9,7.15361472]
[1646951900364,29.66778318,2610.0,2609.9,7.15361472]
[1646951900762,28.92348184,2610.0,2609.9,7.15361472]
[1646951901863,28.92348184,2610.0,2609.9,1.39927472]
[1646951902362,11.72,2609.5,2608.6,3.6915]
[1646951902565,3.95906,2608.9,2608.6,0.1915]
[1646951903108,3.0,2608.7,2608.6,0.1915]
[1646951903305,1.95906,2608.9,2608.6,0.1915]
[1646951903306,4.95906,2608.9,2608.6,0.1915]
[1646951903504,5.90866,2608.9,2608.5,0.1915]
[1646951903706,4.9496,2608.9,2608.5,0.1915]
[1646951904005,0.9592,2608.7,2608.5,0.08776855]
[1646951904204,0.9592,2608.7,2608.6,0.1915]
[1646951904407,3.9592,2608.7,2608.5,0.1915]
[1646951904606,1.58024512,2608.6,2608.5,0.26443789]
[1646951905410,1.5802481,2608.6,2608.5,0.26443789]
[1646951905613,1.58026152,2608.6,2608.3,0.27374761]
[1646951905810,0.95926,2608.5,2608.3,0.27374761]
[1646951907454,0.95926,2608.5,2608.4,0.08448654]
[1646951911310,2.53966003,2608.5,2608.4,0.08448654]
[1646951912814,5.53966003,2608.5,2608.4,0.08448654]
[1646951913014,5.53966003,2608.5,2608.3,3.69612333]
[1646951913214,3.95926,2608.5,2608.3,3.69612333]
[1646951914258,3.0,2608.4,2608.3,3.69612333]
[1646951915262,4.58041992,2608.4,2608.3,3.69612333]
[1646951915662,3.0,2608.4,2608.3,3.69612333]
[1646951916263,4.58040331,2608.4,2608.3,3.69612333]
[1646951917464,16.30040331,2608.4,2608.3,3.69612333]
[1646951919714,13.30040331,2608.4,2608.3,3.69612333]
[1646951920117,16.30040331,2608.4,2608.3,3.69612333]
[1646951920724,4.58040331,2608.4,2608.3,3.69612333]
[1646951920922,16.30040331,2608.4,2608.3,3.69612333]
[1646951922758,13.30040331,2608.4,2608.3,3.69612333]
[1646951922958,16.30040331,2608.4,2608.3,3.69612333]
[1646951923158,4.58040331,2608.4,2608.3,3.69612333]
[1646951923359,16.30040331,2608.4,2608.3,3.69612333]
[1646951923561,4.58040331,2608.4,2608.3,3.69612333]
[1646951924160,1.58040331,2608.4,2608.3,3.69612333]
[1646951934608,1.57940024,2608.4,2608.3,3.69612333]
[1646951937560,1.57940024,2608.4,2608.3,4.08012333]
[1646951940208,1.57940024,2608.4,2608.3,4.38012333]
[1646951940811,0.11517516,2608.5,2608.3,4.38012333]
[1646951941014,0.11517516,2608.5,2608.4,1.552]
[1646951945763,0.11517516,2608.5,2608.4,5.052]
[1646951947807,7.516e-05,2608.5,2608.4,5.052]
[1646951949707,0.07965437,2608.5,2608.4,5.052]
[1646951949913,0.01598894,2609.0,2608.4,5.052]
[1646951950108,0.01598894,2609.0,2608.7,0.384]
[1646951950313,0.01598894,2609.0,2608.9,2.884]
[1646951950613,4.0,2609.5,2609.0,0.07273062]
[1646951950813,0.01598523,2609.4,2609.0,0.07273062]
[1646951951315,0.01598523,2609.4,2609.2,0.08162464]
[1646951951765,0.03939728,2609.6,2609.2,0.08162464]
[1646951952165,0.03939728,2609.6,2609.2,1.42405464]
[1646951952366,0.03939728,2609.6,2609.4,0.0673091]
[1646951952571,0.03939728,2609.6,2609.3,1.83154907]
[1646951952765,0.03939728,2609.6,2609.3,5.71554907]
[1646951953066,0.03939728,2609.6,2609.4,0.06820412]
[1646951954266,0.03532592,2609.5,2609.4,1.98471942]
[1646951954465,0.03532592,2609.5,2609.4,6.1005153]
[1646951954867,1.61492376,2609.5,2609.4,6.1005153]
[1646951955074,1.61492376,2609.5,2609.4,7.1005153]
[1646951956015,0.03532592,2609.5,2609.4,7.1005153]
[1646951957622,0.03532592,2609.5,2609.4,10.9005153]
[1646951959059,0.00142059,2610.3,2609.8,0.95814]
[1646951959261,0.01721408,2610.0,2609.9,2.5]
[1646951959460,1.59674665,2610.0,2609.9,2.5]
[1646951960166,1.57953257,2610.0,2609.9,2.5]
[1646951960364,0.05802137,2610.6,2609.9,2.5]
[1646951960365,0.00430354,2610.2,2609.9,2.5]
[1646951960568,1.57953257,2610.1,2609.9,2.5]
[1646951961166,1.57953257,2610.1,2609.9,3.4581398]
[1646951961466,1.57953257,2610.1,2610.0,0.95813]
[1646951961868,1.57953257,2610.1,2610.0,1.25813]
[1646951962714,0.00235644,2610.2,2610.0,1.25813]
[1646951963113,0.00235644,2610.2,2610.0,2.21625]
[1646951963310,1.58188901,2610.2,2610.0,2.21625]
[1646951963513,1.57953257,2610.1,2610.0,2.21625]
[1646951963715,1.57953257,2610.5,2610.0,2.21625]
[1646951963912,0.00416532,2610.2,2610.0,1.25813]
[1646951964113,0.00416532,2610.2,2610.0,3.17438]
[1646951964315,1.58369789,2610.2,2610.0,4.17438]
[1646951964514,0.00416532,2610.2,2610.0,4.17438]
[1646951964915,1.57937438,2610.5,2610.0,4.17438]
[1646951965116,1.64971507,2610.4,2610.2,0.95811]
[1646951965324,1.57937438,2610.3,2610.2,1.25811]
[1646951969561,0.06839391,2610.4,2610.2,1.25811]
[1646951969761,0.01653644,2610.8,2610.2,1.25811]
[1646951969961,0.09234301,2610.3,2610.2,1.25811]
[1646951970430,1.67174985,2610.3,2610.2,1.25811]
[1646951970622,1.74045261,2610.3,2610.2,1.25811]
[1646951970825,1.67174985,2610.3,2610.2,1.25811]
[1646951971522,0.09234301,2610.3,2610.2,1.25811]
[1646951971924,1.67169967,2610.3,2610.2,1.25811]
[1646951972524,1.67169967,2610.3,2610.1,2.48966841]
[1646951972724,0.09234301,2610.3,2610.1,1.48966841]
[1646951973125,0.09234301,2610.3,2610.2,0.95811]
[1646951973526,1.6756894,2610.3,2610.2,0.95811]
[1646951974160,1.6756894,2610.3,2610.2,1.25811]
[1646951974360,1.67564273,2610.3,2610.2,1.25811]
[1646951974561,1.67163623,2610.3,2610.2,0.3]
[1646951975161,0.09234301,2610.3,2610.2,0.3]
[1646951975764,1.67163525,2610.3,2610.1,0.53157941]
[1646951975966,1.57929224,2610.2,2610.0,1.91625]
[1646951976166,1.57929224,2610.2,2610.1,0.3]
[1646951976365,0.09234301,2610.3,2610.1,0.3]
[1646951977164,0.09634874,2610.3,2610.1,0.3]
[1646951978012,0.09234301,2610.3,2610.1,0.3]
[1646951978315,0.09634879,2610.3,2610.1,4.1]
[1646951978812,1.57946235,2610.2,2610.1,4.1]
[1646951980012,1.57946235,2610.2,2610.1,3.8]
[1646951980820,1.65262216,2610.2,2610.1,3.8]
[1646951982665,1.65262216,2610.2,2610.1,3.79915578]
[1646951983765,1.68293022,2610.2,2610.1,3.79915578]
[1646951983967,1.60977041,2610.2,2610.1,3.79915578]
[1646951990268,1.66939198,2610.2,2610.1,3.79915578]
[1646951992470,1.66939198,2610.2,2610.1,2.11434247]
[1646951993115,2.37297366,2610.2,2610.1,2.11434247]
[1646951995215,1.66939198,2610.2,2610.1,2.11434247]
[1646951997671,4.52803854,2610.2,2610.1,2.11434247]
[1646951997872,4.52803854,2610.2,2610.1,1.9936445]
[1646951997873,6.4141879,2610.2,2610.1,1.9936445]
[1646951998070,6.46939198,2610.2,2610.1,1.49644082]
[1646951998270,19.57326772,2610.2,2610.1,0.94625183]
[1646951998471,21.0292035,2610.2,2610.1,0.94625183]
[1646951999271,21.0292035,2610.2,2609.0,4.21520536]
[1646951999272,11.72,2609.9,2609.0,4.21520536]
[1646951999472,0.7084679,2609.5,2609.0,4.21520536]
[1646951999673,1.57946235,2609.5,2609.0,4.21520536]
[1646951999873,2.28793025,2609.5,2609.0,4.21520536]
[1646952000916,2.28793025,2609.5,2608.7,0.95869]
[1646952001116,1.57946235,2609.4,2608.8,1.25862]
[1646952001317,1.57946235,2609.3,2608.9,0.3]
[1646952001623,1.57946235,2609.2,2608.9,0.3]
[1646952001817,1.57946235,2609.1,2608.9,0.3]
[1646952002015,1.57946235,2609.1,2608.7,1.4853]
[1646952002218,0.7084679,2609.5,2608.7,2.44399]
[1646952002219,1.57946235,2609.0,2608.7,2.44399]
[1646952002515,1.57946235,2608.9,2608.7,0.95869]
[1646952002717,3.5,2609.4,2608.5,1.91728]
[1646952002718,1.57946235,2608.8,2608.5,1.91728]
[1646952002915,1.57946235,2608.7,2608.5,1.91728]
[1646952003117,0.7084679,2609.4,2608.9,2.5]
[1646952003417,1.58002851,2609.3,2608.9,2.5]
[1646952003616,0.7084679,2609.5,2608.6,1.1502]
[1646952003617,0.01604482,2609.1,2608.6,1.1502]
[1646952003817,1.58002851,2609.0,2608.6,0.9587]
[1646952004064,0.06450856,2608.9,2608.6,0.9587]
[1646952004271,0.01604482,2609.1,2608.6,0.9587]
[1646952004272,1.58004158,2608.8,2608.6,0.9587]
[1646952004467,0.0692686,2608.9,2608.6,0.9587]
[1646952004764,0.07824267,2609.3,2608.6,0.9587]
[1646952004964,1.58002337,2609.2,2608.9,2.5]
[1646952005165,0.06749183,2609.1,2608.9,2.5]
[1646952005368,1.58002337,2609.0,2608.9,2.5]
[1646952005569,1.58002337,2609.0,2608.6,0.9587]
[1646952005570,0.07510049,2608.9,2608.6,0.9587]
[1646952005769,0.05752294,2609.3,2608.6,0.9587]
[1646952006070,1.58001527,2609.2,2608.6,0.9587]
[1646952006269,0.06864215,2609.1,2608.6,0.9587]
[1646952006468,0.07339013,2608.9,2608.6,0.9587]
[1646952007068,4.5,2609.4,2608.6,0.9587]
[1646952007069,0.06622614,2609.3,2608.6,0.9587]
[1646952007269,1.58002262,2609.2,2608.6,0.9587]
[1646952007469,0.0715819,2609.1,2608.6,0.9587]
[1646952007713,0.07372004,2608.9,2608.6,0.9587]
[1646952007914,0.08480216,2609.3,2608.6,0.9587]
[1646952008115,0.05733665,2609.1,2608.6,0.9587]
[1646952008314,0.05733665,2609.1,2608.6,1.2587]
[1646952008315,1.58001075,2609.0,2608.6,1.2587]
[1646952008514,0.05782483,2608.9,2608.6,6.2864]
[1646952008716,0.01604443,2609.3,2608.6,6.2864]
[1646952008914,0.05793133,2609.1,2608.6,7.2864]
[1646952009115,0.06025143,2608.9,2608.6,7.2864]
[1646952009316,0.15558733,2609.5,2608.6,7.2864]
[1646952009519,1.59599057,2609.4,2608.6,7.2864]
[1646952009715,0.08838032,2608.9,2608.7,0.95867]
[1646952010116,0.08838032,2608.9,2608.7,1.25867]
[1646952012670,0.08838032,2608.9,2608.7,2.19467]
[1646952013469,0.08838032,2608.9,2608.8,0.1915]
[1646952013671,0.0160443,2609.3,2609.0,0.384]
[1646952013870,0.0160443,2609.3,2609.2,0.384]
[1646952014268,0.06611387,2609.8,2609.2,0.8755]
[1646952014470,1.59561772,2609.7,2609.2,0.8755]
[1646952014675,1.59561772,2609.7,2609.2,0.684]
[1646952014676,1.57958121,2609.6,2609.2,0.684]
[1646952014870,1.57958121,2609.6,2609.3,0.552]
[1646952015326,1.57958121,2609.6,2609.3,1.51047]
[1646952015523,0.06611387,2609.8,2609.3,1.51047]
[1646952015725,1.5795298,2609.7,2609.3,1.51047]
[1646952015926,1.5795298,2609.7,2609.4,0.384]
[1646952016125,1.5795298,2609.6,2609.4,0.936]
[1646952016327,0.62899777,2610.0,2609.4,1.236]
[1646952016525,1.5795229,2609.9,2609.4,1.236]
[1646952018125,1.5795229,2609.9,2609.5,1.34246]
[1646952018327,1.5795229,2609.9,2609.5,1.64246]
[1646952018727,0.02587863,2609.7,2609.5,1.64246]
[1646952018976,0.02587863,2609.7,2609.5,1.64236]
[1646952019173,0.02587863,2609.7,2609.6,3.5]
[1646952019370,1.60547893,2609.7,2609.6,5.80072]
[1646952019570,1.60547893,2609.7,2609.6,6.80072]
[1646952020375,1.60547893,2609.7,2609.6,3.30072]
[1646952020575,1.60547893,2609.7,2609.6,2.30072]
[1646952022380,1.60547893,2609.7,2609.6,1.91672]
[1646952022584,1.66502571,2609.7,2609.6,1.91672]
[1646952028970,0.08542541,2609.7,2609.6,1.91672]
[1646952029173,0.02587863,2609.7,2609.6,1.91672]
[1646952029371,1.60544651,2609.7,2609.6,1.91672]
[1646952029974,0.02587863,2609.7,2609.6,1.91672]
[1646952031223,1.60544609,2609.7,2609.6,1.91672]
[1646952032123,0.02587863,2609.7,2609.6,1.91672]
[1646952033125,1.60544404,2609.7,2609.6,1.91672]
[1646952033728,1.60451316,2609.7,2609.6,1.91672]
[1646952036074,1.60451316,2609.7,2609.6,5.41672]
[1646952036275,1.60451316,2609.7,2609.6,2.91672]
[1646952037174,1.60451316,2609.7,2609.6,1.91672]
[1646952037374,1.60451316,2609.7,2609.6,2.91672]
[1646952037574,0.02494775,2609.7,2609.6,1.91672]
[1646952040018,1.60442579,2609.7,2609.6,1.91672]
[1646952040421,1.10442579,2609.7,2609.6,1.91672]
[1646952040626,1.10442579,2609.7,2609.6,2.87499]
[1646952040821,0.06875721,2609.7,2609.6,3.87499]
[1646952041024,0.05263514,2609.8,2609.6,3.87499]
[1646952042973,0.04794094,2609.8,2609.6,3.87499]
[1646952044373,0.02477791,2609.7,2609.6,3.87499]
[1646952048129,0.02477791,2609.7,2609.6,2.91672]
[1646952049672,0.02477791,2609.7,2609.6,1.91672]
[1646952049872,0.02477791,2609.7,2609.6,2.91672]
[1646952050072,0.02477791,2609.7,2609.6,1.91672]
[1646952050276,0.02477791,2609.7,2609.6,2.91672]
[1646952050476,0.02477791,2609.7,2609.6,1.91672]
[1646952050676,0.02477791,2609.7,2609.6,2.91672]
[1646952050881,0.02477791,2609.7,2609.6,1.91672]
[1646952060522,1.6043206,2609.7,2609.6,1.91672]
[1646952063528,1.6043206,2609.7,2609.6,5.41672]
[1646952063728,1.6043206,2609.7,2609.6,2.91672]
[1646952064170,1.6043206,2609.7,2609.6,1.91672]
[1646952064369,1.6043206,2609.7,2609.6,2.91672]
[1646952064571,1.6043206,2609.7,2609.6,1.91672]
[1646952064970,0.02477791,2609.7,2609.6,1.91672]
[1646952065170,1.60330813,2609.7,2609.6,1.91672]
[1646952070122,1.61481566,2609.7,2609.6,1.91672]
[1646952086326,1.61481566,2609.7,2609.5,5.75834]
[1646952086578,1.57939673,2609.6,2609.5,5.75834]
[1646952094476,1.57939673,2609.6,2609.5,4.75834]
[1646952100124,1.57939673,2609.6,2609.5,3.8]
[1646952102981,1.57939673,2609.6,2609.5,4.8]
[1646952110982,1.65077407,2609.6,2609.5,4.8]
[1646952112382,1.65077407,2609.6,2609.5,5.1]
[1646952113737,1.64966436,2609.6,2609.5,5.1]
[1646952117701,1.57828702,2609.6,2609.5,5.1]
[1646952129525,1.57828702,2609.6,2609.5,1.3]
[1646952129726,1.57828702,2609.6,2609.5,0.3]
[1646952129929,1.57828702,2609.6,2609.4,1.25847]
[1646952133376,0.12662523,2609.7,2609.4,1.25847]
[1646952133574,0.0656988,2609.7,2609.4,2.19952774]
[1646952133776,0.0656988,2609.7,2609.4,1.25847]
[1646952134878,0.0656988,2609.7,2609.4,2.19952774]
[1646952135535,0.06445421,2609.7,2609.4,2.19952774]
[1646952135734,0.06445421,2609.7,2609.4,2.14952774]
[1646952136843,0.06445421,2609.7,2609.4,1.20847]
[1646952140478,0.06445421,2609.7,2609.4,5.00847]
[1646952140880,0.06445421,2609.7,2609.4,6.00847]
[1646952143126,1.579463,2609.6,2609.4,6.00847]
[1646952143326,0.0722592,2609.5,2609.4,6.00847]
[1646952143525,0.06445421,2609.7,2609.4,6.00847]
[1646952143725,0.07339591,2609.5,2609.4,6.00847]
[1646952143925,0.06445421,2609.7,2609.4,6.00847]
[1646952144126,0.07178209,2609.5,2609.4,6.00847]
[1646952144327,0.06687371,2609.6,2609.4,6.00847]
[1646952149584,0.03354878,2609.5,2609.4,6.00847]
[1646952149788,0.03354878,2609.5,2609.4,5.05]
[1646952156286,0.03198084,2609.5,2609.4,5.05]
[1646952159927,0.03198084,2609.5,2609.4,5.0]
[1646952162376,0.03198084,2609.5,2609.4,5.94105774]
[1646952162781,0.03198084,2609.5,2609.4,5.0]
[1646952163383,0.03198084,2609.5,2609.4,5.94105774]
[1646952167432,0.04324173,2610.2,2609.4,7.85767774]
[1646952167633,1.57946075,2610.1,2609.6,1.91664]
[1646952167834,0.05496126,2610.0,2609.6,2.21664]
[1646952168037,0.0549761,2609.8,2609.6,2.21664]
[1646952168232,1.57946075,2609.7,2609.6,2.21664]
[1646952169476,1.57946075,2609.7,2609.6,2.21551182]
[1646952180081,1.57946075,2609.7,2609.6,2.76751182]
[1646952180333,1.57946075,2609.7,2609.6,3.76751182]
[1646952184478,1.57946075,2609.7,2609.6,3.21551182]
[1646952184679,1.57946075,2609.7,2609.6,2.21551182]
[1646952184877,1.57946075,2609.7,2609.6,3.21551182]
[1646952185077,1.57946075,2609.7,2609.6,2.21551182]
[1646952186284,0.14771488,2609.8,2609.6,2.21551182]
[1646952186483,0.09273878,2609.8,2609.6,3.15656956]
[1646952186883,0.09273878,2609.8,2609.6,4.15656956]
[1646952187284,0.09273878,2609.8,2609.6,4.16058061]
[1646952187932,0.09273878,2609.8,2609.6,3.21952287]
[1646952188130,0.09273878,2609.8,2609.6,2.26120287]
[1646952188329,0.09273878,2609.8,2609.6,1.25719182]
[1646952188531,0.09273878,2609.8,2609.6,1.26120287]
[1646952189429,0.09273878,2609.8,2609.6,1.25719182]
[1646952189628,0.09273878,2609.8,2609.6,1.26120285]
[1646952190433,0.09273878,2609.8,2609.6,2.21953285]
[1646952190634,0.09273878,2609.8,2609.6,2.21552182]
[1646952190832,0.09273878,2609.8,2609.6,2.21953285]
[1646952191881,0.09181811,2609.8,2609.6,2.21552182]
[1646952192084,0.09181811,2609.8,2609.6,2.21953285]
[1646952192982,0.09181811,2609.8,2609.6,2.21552182]
[1646952193487,0.09181811,2609.8,2609.6,2.21953285]
[1646952194184,0.09181811,2609.8,2609.6,2.21552182]
[1646952194582,0.09181811,2609.8,2609.6,2.21953285]
[1646952195441,0.09181811,2609.8,2609.6,2.21552182]
[1646952195643,0.09181811,2609.8,2609.6,2.21953285]
[1646952196742,0.09181811,2609.8,2609.6,2.21552182]
[1646952196943,0.09181811,2609.8,2609.6,2.21953285]
[1646952197941,0.09181811,2609.8,2609.6,2.21552182]
[1646952198142,0.09181811,2609.8,2609.6,2.21953285]
[1646952198980,0.09181811,2609.8,2609.6,2.21552182]
[1646952199381,0.09181811,2609.8,2609.6,2.21953285]
[1646952200299,0.09181811,2609.8,2609.6,2.21552182]
[1646952200489,0.09181811,2609.8,2609.6,2.21953285]
[1646952201389,0.09181811,2609.8,2609.6,2.21552182]
[1646952201793,0.09181811,2609.8,2609.6,2.21953285]
[1646952202732,0.09181811,2609.8,2609.6,2.21552182]
[1646952202934,0.09181811,2609.8,2609.6,2.21953285]
[1646952203936,0.09181811,2609.8,2609.6,2.21552182]
[1646952204137,0.09181811,2609.8,2609.6,2.21953285]
[1646952205139,0.09181811,2609.8,2609.6,2.21552182]
[1646952205342,0.09181811,2609.8,2609.6,2.21953285]
[1646952206342,0.09181811,2609.8,2609.6,2.21552182]
[1646952206585,0.09181811,2609.8,2609.6,2.21953285]
[1646952207483,0.09181811,2609.8,2609.6,2.21552182]
[1646952207683,0.09181811,2609.8,2609.6,2.21953285]
[1646952208285,1.57943121,2609.7,2609.6,2.21953285]
[1646952208487,1.57943121,2609.7,2609.6,1.26120285]
[1646952208688,0.09181811,2609.8,2609.6,1.25719182]
[1646952208885,1.57940424,2609.7,2609.6,1.25719182]
[1646952209286,0.09181811,2609.8,2609.6,1.25719182]
[1646952210086,0.09181811,2609.8,2609.6,1.26120285]
[1646952210734,1.57940495,2609.7,2609.6,1.26120285]
[1646952211132,1.57940495,2609.7,2609.6,1.25719182]
[1646952211533,0.09181811,2609.8,2609.6,1.25719182]
[1646952211832,1.57942881,2609.7,2609.5,2.26232106]
[1646952212038,1.57942881,2609.7,2609.5,0.96232106]
[1646952212334,1.57942881,2609.7,2609.4,4.1]
[1646952212335,1.57815652,2609.7,2609.4,4.1]
[1646952212535,1.57815652,2609.7,2609.5,0.00401109]
[1646952213534,1.57815652,2609.7,2609.4,4.1]
[1646952213737,1.57815652,2609.7,2609.5,0.00401109]
[1646952214687,1.57815652,2609.7,2609.4,3.8]
[1646952214881,1.57815652,2609.7,2609.5,0.0040111]
[1646952215887,1.57815652,2609.7,2609.4,3.8]
[1646952216088,1.57815652,2609.7,2609.5,0.0040111]
[1646952217088,1.57815652,2609.7,2609.4,4.75855]
[1646952217294,1.57815652,2609.7,2609.5,0.0040111]
[1646952218336,1.57815652,2609.7,2609.4,4.75855]
[1646952218536,0.06716233,2609.6,2609.5,0.0040111]
[1646952218736,0.09181811,2609.8,2609.5,0.0040111]
[1646952218935,0.0322196,2609.7,2609.5,0.0040111]
[1646952219538,0.0322196,2609.7,2609.4,4.75855]
[1646952219739,0.0322196,2609.7,2609.5,0.0040111]
[1646952220745,0.0322196,2609.7,2609.4,4.75855]
[1646952220943,0.0322196,2609.7,2609.5,0.0040111]
[1646952221789,0.0322196,2609.7,2609.4,4.75855]
[1646952222192,0.0322196,2609.7,2609.5,0.0040111]
[1646952223192,0.0322196,2609.7,2609.4,4.75855]
[1646952223593,0.0322196,2609.7,2609.5,0.0040111]
[1646952224292,0.0322196,2609.7,2609.4,4.75855]
[1646952224492,0.0322196,2609.7,2609.5,0.0040111]
[1646952225439,0.0322196,2609.7,2609.4,4.75855]
[1646952225640,0.0322196,2609.7,2609.4,5.05855]
[1646952225842,0.0322196,2609.7,2609.5,0.0040111]
[1646952226640,0.0322196,2609.7,2609.4,5.05855]
[1646952226841,0.0322196,2609.7,2609.4,6.05855]
[1646952227040,0.0322196,2609.7,2609.5,0.0040111]
[1646952227847,0.0322196,2609.7,2609.4,7.25415]
[1646952228042,0.0322196,2609.7,2609.5,0.0040111]
[1646952229083,0.0322196,2609.7,2609.4,8.21256]
[1646952229282,0.0322196,2609.7,2609.5,0.00401107]
[1646952230286,0.0322196,2609.7,2609.4,8.21256]
[1646952230688,0.0322196,2609.7,2609.5,0.00401107]
[1646952231489,0.0322196,2609.7,2609.4,8.21256]
[1646952232487,0.0322196,2609.7,2609.4,8.40406]
[1646952232930,0.0322196,2609.7,2609.4,8.40807456]
[1646952233132,0.0322196,2609.7,2609.4,8.79207456]
[1646952233329,0.0322196,2609.7,2609.4,9.34407456]
[1646952233528,0.0322196,2609.7,2609.4,9.15257456]
[1646952233928,0.0322196,2609.7,2609.4,9.14856]
[1646952234130,0.0322196,2609.7,2609.4,9.15257456]
[1646952234730,0.0322196,2609.7,2609.4,10.0936323]
[1646952234930,0.0322196,2609.7,2609.5,0.9583167]
[1646952235534,0.03099754,2609.7,2609.5,0.9583167]
[1646952236135,0.03099754,2609.7,2609.6,0.936]
[1646952236984,0.03099754,2609.7,2609.6,4.436]
[1646952237182,0.03099754,2609.7,2609.6,5.436]
[1646952245888,0.03099754,2609.7,2609.6,6.37705774]
[1646952247589,0.03099754,2609.7,2609.6,5.436]
[1646952248833,0.03099754,2609.7,2609.6,1.552]
[1646952249034,0.03099754,2609.7,2609.6,4.052]
[1646952249236,0.03099754,2609.7,2609.6,5.052]
[1646952249936,0.03099754,2609.7,2609.6,5.436]
[1646952250540,0.03099754,2609.7,2609.6,6.37705774]
[1646952252183,0.03099754,2609.7,2609.6,5.436]
[1646952253083,0.03099754,2609.7,2609.6,5.99305774]
[1646952253285,0.03099754,2609.7,2609.6,5.052]
[1646952253887,0.03099754,2609.7,2609.6,5.2435]
[1646952254086,0.03099754,2609.7,2609.6,5.6275]
[1646952254285,0.01899754,2609.7,2609.6,5.6275]
[1646952254488,0.03216632,2609.7,2609.6,5.6275]
[1646952256341,0.03216632,2609.7,2609.6,6.56603768]
[1646952256536,0.03216632,2609.7,2609.6,5.6275]
[1646952260395,0.03216632,2609.7,2609.6,6.5655156]
[1646952260992,0.03216632,2609.7,2609.6,5.6275]
[1646952261792,0.03216632,2609.7,2609.6,6.3740156]
[1646952263235,0.03216632,2609.7,2609.6,5.9900156]
[1646952269286,0.03216632,2609.7,2609.6,5.052]
[1646952271141,0.03216632,2609.7,2609.6,1.552]
[1646952271342,0.03216632,2609.7,2609.6,4.052]
[1646952271744,0.03216632,2609.7,2609.6,5.052]
[1646952272145,0.03216632,2609.7,2609.6,1.552]
[1646952272341,0.03216632,2609.7,2609.6,4.052]
[1646952272842,0.03216632,2609.7,2609.6,5.052]
[1646952275494,0.03216632,2609.7,2609.6,7.052]
[1646952275897,0.03216632,2609.7,2609.6,3.552]
[1646952276595,0.03216632,2609.7,2609.6,1.552]
[1646952276795,0.03090912,2609.7,2609.6,0.552]
[1646952278235,0.03090912,2609.7,2609.6,5.47170314]
[1646952278435,0.03090912,2609.7,2609.6,0.552]
[1646952278835,0.03090912,2609.7,2609.6,4.052]
[1646952279136,0.03090912,2609.7,2609.6,6.47170314]
[1646952280844,0.03090912,2609.7,2609.6,2.97170314]
[1646952281043,0.03090912,2609.7,2609.6,5.47170314]
[1646952281244,0.03090912,2609.7,2609.6,2.97170314]
[1646952281686,0.03090912,2609.7,2609.6,5.47170314]